fUSD/lending_fUSD_20240404
["ID","MTS","AMOUNT","RATE_DAILY","PERIOD"]
[321485113,1712236242561,-261.16365937,0.00038254,7]
[321485114,1712236242572,-155.97762983,0.00038267,7]
[321485115,1712236242582,-255.29102252,0.00038274,7]
[321485116,1712236242592,-153.82631398,0.00038328,7]
[321485117,1712236242602,-1164.04,0.00038364,2]
[321485118,1712236242612,-444.52391945,0.00038426,7]
[321485119,1712236242621,-155.26020619,0.0003846,7]
[321485120,1712236242631,-489.62881833,0.000385,4]
[321485121,1712236242641,-150.0,0.000385,2]
[321485122,1712236242650,-150.0,0.000385,2]
[321485123,1712236242660,-150.0,0.000385,2]
[321485124,1712236242669,-150.0,0.000385,2]
[321485125,1712236242681,-150.50625035,0.00038541,7]
[321485126,1712236242691,-154.06850799,0.00038548,7]
[321485127,1712236242700,-150.50625035,0.00038632,7]
[321485128,1712236242709,-155.97526314,0.000387,4]
[321485129,1712236242719,-155.97762983,0.00038735,7]
[321485130,1712236242730,-255.29102252,0.0003879,7]
[321485131,1712236242740,-255.29102252,0.00038815,7]
[321485132,1712236242749,-155.97762983,0.00038815,7]
[321485133,1712236242759,-4065.34553289,0.000389,15]
[321485134,1712236242769,-536.45,0.000389,7]
[321485135,1712236242778,-150.0,0.00038933,2]
[321485136,1712236242787,-155.0,0.00038983,7]
[321485137,1712236242797,-1876.61601221,0.0003899,3]
[321485138,1712236242806,-7263.28347,0.00039,2]
[321485139,1712236242816,-1211.0,0.00039,4]
[321485140,1712236242826,-2000.0,0.00039,4]
[321485141,1712236242836,-261.68058527,0.00039,2]
[321485143,1712236242846,-2361.0,0.00039027,2]
[321485144,1712236242856,-1318.730828,0.0003905,2]
[321485145,1712236242866,-261.16365937,0.00039116,7]
[321485146,1712236242875,-163.19664356,0.00039185,7]
[321485147,1712236242885,-1114.99903275,0.000392,2]
[321485148,1712236242895,-680.45,0.000392,7]
[321485149,1712236242905,-545.83,0.000392,7]
[321485150,1712236242915,-152.11069391,0.00039231,7]
[321485151,1712236242928,-689.19091195,0.00039247,11]
[321485152,1712236242937,-611.12,0.00039264,2]
[321485153,1712236242946,-207.0,0.00039264,2]
[321485154,1712236242956,-214.0,0.00039264,2]
[321485155,1712236242966,-153.87719975,0.00039324,7]
[321485156,1712236242975,-261.16365937,0.00039343,7]
[321485157,1712236242985,-153.87719975,0.00039404,7]
[321485158,1712236242994,-152.11069391,0.00039445,7]
[321485159,1712236243004,-155.97762983,0.00039537,7]
[321485160,1712236243013,-157.30997332,0.0003954,7]
[321485161,1712236243023,-154.06850799,0.00039562,7]
[321485162,1712236243032,-310.16,0.0003957,2]
[321485163,1712236243042,-911.46785595,0.00039589,30]
[321485164,1712236243053,-159.12958476,0.00039598,7]
[321485165,1712236243063,-52252.59779802,0.0003962,30]
[321485166,1712236243072,-155.67554625,0.00039725,7]
[321485167,1712236243082,-155.97762983,0.00039743,7]
[321485168,1712236243092,-911.46785595,0.00039753,30]
[321485169,1712236243101,-1398.444825,0.0003978,17]
[321485170,1712236243111,-150.0,0.00039798,2]
[321485171,1712236243121,-1000.0,0.000398,17]
[321485172,1712236243130,-1000.0,0.0003982,17]
[321485173,1712236243140,-150.0,0.00039834,2]
[321485174,1712236243150,-1000.0,0.0003984,17]
[321485175,1712236243160,-1000.0,0.0003986,17]
[321485176,1712236243169,-1000.0,0.0003988,17]
[321485177,1712236243186,-5579.53546474,0.00039898,2]
[321485178,1712236243196,-309224.83950791,0.000399,3]
[321485179,1712236243206,-1000.0,0.000399,17]
[321485180,1712236243217,-911.46785595,0.00039918,30]
[321485181,1712236243226,-1000.0,0.0003992,17]
[321485182,1712236243236,-153.87719975,0.0003994,7]
[321485183,1712236243246,-1000.0,0.0003994,17]
[321485184,1712236243255,-1175.393457,0.0003994,17]
[321485185,1712236243265,-160.34535195,0.00039952,7]
[321485186,1712236243274,-1000.0,0.0003996,17]
[321485187,1712236243284,-1000.0,0.0003996,17]
[321485188,1712236243293,-154.06850799,0.00039968,7]
[321485189,1712236243302,-160.34535195,0.00039978,7]
[321485190,1712236243311,-1000.0,0.0003998,17]
[321485191,1712236243320,-1000.0,0.0003998,17]
[321485192,1712236243330,-200.0,0.0003999,7]
[321485193,1712236243340,-200.0,0.0003999,7]
[321485194,1712236243350,-591.48651858,0.00039997,4]
[321485195,1712236243361,-17862.47536824,0.00039997,2]
[321485196,1712236243371,-308.48334315,0.00039998,4]
[321485197,1712236243382,-806.18760338,0.00039998,4]
[321485198,1712236243391,-360.83535144,0.00039998,4]
[321485199,1712236243402,-197.12531713,0.00039998,4]
[321485200,1712236243412,-490.677752,0.00039998,4]
[321485201,1712236243426,-196.5317841,0.00039998,4]
[321485202,1712236243439,-339.13623079,0.00039998,4]
[321485203,1712236243449,-1052.71876365,0.00039998,4]
[321485204,1712236243459,-3903.00871955,0.00039998,4]
[321485205,1712236243468,-155.0,0.00039999,4]
[321485206,1712236243479,-155.0,0.00039999,4]
[321485207,1712236243489,-1000.0,0.00039999,2]
[321485208,1712236243499,-1000.0,0.00039999,2]
[321485209,1712236243510,-1000.0,0.00039999,2]
[321485210,1712236243520,-1000.0,0.00039999,2]
[321485211,1712236243530,-1000.0,0.00039999,2]
[321485212,1712236243540,-1000.0,0.00039999,2]
[321485213,1712236243549,-1000.0,0.00039999,2]
[321485214,1712236243559,-1000.0,0.00039999,2]
[321485215,1712236243568,-1000.0,0.00039999,2]
[321485217,1712236243581,-1000.0,0.00039999,2]
[321485218,1712236243594,-1000.0,0.00039999,2]
[321485219,1712236243605,-1000.0,0.00039999,2]
[321485220,1712236243615,-1000.0,0.00039999,2]
[321485221,1712236243625,-1000.0,0.00039999,2]
[321485222,1712236243635,-1000.0,0.00039999,2]
[321485223,1712236243644,-1000.0,0.00039999,2]
[321485224,1712236243655,-1000.0,0.00039999,2]
[321485225,1712236243666,-1042.05888118,0.00039999,2]
[321485226,1712236243678,-192.76675003,0.0004,2]
[321485227,1712236243688,-22103.7237332,0.0004,4]
[321485228,1712236243698,-5758.8947196,0.0004,4]
[321485229,1712236243707,-2500.0,0.0004,4]
[321485230,1712236243716,-3740407.33,0.0004,5]
[321485231,1712236243726,-547.14230713,0.0004,4]
[321485232,1712236243735,-1570.65515847,0.0004,60]
[321485233,1712236243746,-1100.0,0.0004,7]
[321485234,1712236243756,-482.82080249,0.0004,30]
[321485235,1712236243768,-1693.31614018,0.0004,10]
[321485236,1712236243778,-530.08933711,0.0004,30]
[321485237,1712236243787,-509.85214185,0.0004,30]
[321485238,1712236243798,-25925.69492793,0.0004,7]
[321485239,1712236243808,-171.13123874,0.0004,30]
[321485240,1712236243818,-932.29759929,0.0004,2]
[321485241,1712236243828,-26184.23080357,0.0004,2]
[321485242,1712236243839,-367.14545274,0.0004,30]
[321485243,1712236243848,-369.09860845,0.0004,2]
[321485244,1712236243858,-31120.39842759,0.0004,8]
[321485245,1712236243868,-31120.39842759,0.0004,8]
[321485246,1712236243878,-31120.39842759,0.0004,8]
[321485247,1712236243888,-31120.39842759,0.0004,8]
[321485248,1712236243898,-31120.39842759,0.0004,8]
[321485249,1712236243907,-31120.39842759,0.0004,8]
[321485250,1712236243917,-31120.39842759,0.0004,8]
[321485251,1712236243929,-31120.39842759,0.0004,8]
[321485252,1712236243939,-31120.39842759,0.0004,8]
[321485253,1712236243949,-31120.39742759,0.0004,8]
[321485254,1712236243958,-200.0,0.0004,7]
[321485255,1712236243969,-1034.70883663,0.0004,8]
[321485256,1712236243980,-150.0,0.0004,15]
[321485257,1712236243990,-200.0,0.0004,15]
[321485258,1712236244000,-1000.0,0.0004,17]
[321485259,1712236244012,-1000.0,0.0004,17]
[321485260,1712236244021,-275.5,0.0004,2]
[321485261,1712236244031,-4210.88978318,0.0004,2]
[321485262,1712236244041,-4210.88978318,0.0004,2]
[321485263,1712236244051,-4210.88978318,0.0004,2]
[321485264,1712236244061,-4210.88978318,0.0004,2]
[321485265,1712236244071,-4210.88978318,0.0004,2]
[321485266,1712236244081,-4210.88978318,0.0004,2]
[321485267,1712236244091,-4210.88978318,0.0004,2]
[321485268,1712236244102,-4210.88978318,0.0004,2]
[321485269,1712236244111,-4210.88978318,0.0004,2]
[321485270,1712236244121,-4210.88978318,0.0004,2]
[321485271,1712236244130,-4210.88978318,0.0004,2]
[321485272,1712236244139,-4210.88978318,0.0004,2]
[321485273,1712236244149,-4210.88978318,0.0004,2]
[321485274,1712236244158,-4210.88978318,0.0004,2]
[321485275,1712236244168,-4210.88978318,0.0004,2]
[321485276,1712236244180,-4210.88978318,0.0004,2]
[321485277,1712236244189,-4210.88978318,0.0004,2]
[321485278,1712236244199,-4210.88978318,0.0004,2]
[321485279,1712236244208,-4210.88978318,0.0004,2]
[321485280,1712236244218,-4210.88978318,0.0004,2]
[321485281,1712236244228,-4210.88978318,0.0004,2]
[321485282,1712236244237,-4210.88978318,0.0004,2]
[321485283,1712236244247,-4210.88978318,0.0004,2]
[321485284,1712236244257,-4210.88978318,0.0004,2]
[321485285,1712236244267,-1244.6074,0.0004,2]
[321485286,1712236244277,-4210.88978318,0.0004,2]
[321485287,1712236244286,-4210.88978318,0.0004,2]
[321485288,1712236244295,-4210.88978318,0.0004,2]
[321485289,1712236244305,-4210.88978318,0.0004,2]
[321485290,1712236244315,-4210.88978318,0.0004,2]
[321485291,1712236244325,-4210.88978318,0.0004,2]
[321485292,1712236244334,-160.34535195,0.00040039,30]
[321485293,1712236244343,-911.46785595,0.00040082,30]
[321485294,1712236244353,-1006.7,0.000401,2]
[321485295,1712236244363,-310.16,0.000401,2]
[321485296,1712236244372,-155.26020619,0.00040125,30]
[321485297,1712236244381,-255.29102252,0.00040203,30]
[321485298,1712236244391,-444.52391945,0.00040231,30]
[321485299,1712236244400,-911.46785595,0.00040247,30]
[321485300,1712236244410,-2782.22220325,0.00040247,2]
[321485301,1712236244419,-927.89065783,0.00040247,2]
[321485302,1712236244431,-1405.13653441,0.00040247,2]
[321485303,1712236244440,-2951.42831885,0.00040247,3]
[321485304,1712236244449,-499.999999,0.00040247,2]
[321485305,1712236244459,-633153.2965327,0.00040247,20]
[321485306,1712236244468,-547.59726249,0.00040247,2]
[321485307,1712236244478,-150.0,0.00040247,2]
[321485308,1712236244487,-1147.68518136,0.00040247,2]
[321485309,1712236244496,-635.08382378,0.00040247,2]
[321485310,1712236244505,-609.13045787,0.00040247,2]
[321485311,1712236244514,-208.86253145,0.00040247,2]
[321485312,1712236244524,-16627.582021,0.00040247,7]
[321485313,1712236244533,-437.00427402,0.00040247,2]
[321485314,1712236244543,-563.43145373,0.00040247,2]
[321485315,1712236244554,-3358.66555455,0.00040247,2]
[321485316,1712236244563,-234.07386978,0.00040247,2]
[321485317,1712236244574,-524.15022582,0.00040247,2]
[321485318,1712236244583,-887.3352409,0.00040247,2]
[321485319,1712236244595,-468.27988177,0.00040247,2]
[321485320,1712236244604,-384.84017058,0.00040247,2]
[321485321,1712236244614,-240.34106936,0.00040247,2]
[321485322,1712236244624,-8723.64002819,0.00040247,14]
[321485323,1712236244633,-18495.37494677,0.00040247,7]
[321485324,1712236244643,-316.75387914,0.00040247,2]
[321485325,1712236244654,-532.61463632,0.00040247,2]
[321485326,1712236244664,-28062.0598695,0.00040247,7]
[321485327,1712236244675,-526.74600646,0.00040247,5]
[321485328,1712236244684,-354.30280344,0.00040247,2]
[321485329,1712236244694,-592.27813173,0.00040247,2]
[321485330,1712236244703,-2006.59486654,0.00040247,7]
[321485331,1712236244712,-9252.17352754,0.00040247,2]
[321485332,1712236244722,-57257.27154382,0.00040247,7]
[321485333,1712236244928,-34913.5243912,0.00040247,2]
[321485334,1712236244939,-145866.1285226,0.00040247,2]
[321485335,1712236244948,-405.87710737,0.00040247,2]
[321485336,1712236244958,-18964.28991064,0.00040247,3]
[321485337,1712236244969,-3838.47354742,0.00040247,3]
[321485338,1712236244979,-337.43452704,0.00040247,2]
[321485339,1712236244989,-771.11898055,0.00040247,20]
[321485340,1712236244999,-407.0,0.00040247,2]
[321485341,1712236245009,-214.12746738,0.00040247,2]
[321485342,1712236245019,-1713.22894681,0.00040247,2]
[321485343,1712236245029,-150.0,0.00040247,2]
[321485344,1712236245038,-150.0,0.00040247,2]
[321485345,1712236245048,-200.0,0.00040247,2]
[321485346,1712236245058,-153.45332323,0.00040266,30]
[321485347,1712236245067,-200.0,0.000404,7]
[321485348,1712236245078,-911.46785595,0.00040411,30]
[321485349,1712236245088,-911.46785595,0.00040575,30]
[321485350,1712236245098,-536.45,0.000406,7]
[321485351,1712236245108,-1164.04,0.00040628,2]
[321485352,1712236245118,-1244.6074,0.0004065,5]
[321485353,1712236245128,-150.0,0.00040663,2]
[321485354,1712236245138,-261.16365937,0.00040702,30]
[321485355,1712236245148,-155.26020619,0.00040738,30]
[321485356,1712236245158,-911.46785595,0.0004074,30]
[321485357,1712236245167,-1547.47,0.00040767,15]
[321485358,1712236245179,-680.45,0.000408,7]
[321485359,1712236245188,-545.83,0.000408,7]
[321485360,1712236245198,-200.0,0.00040804,7]
[321485361,1712236245208,-11008.82,0.00040822,2]
[321485362,1712236245218,-520.0,0.00040902,2]
[321485363,1712236245228,-911.46785595,0.00040932,30]
[321485364,1712236245238,-150.0,0.00041,16]
[321485365,1712236245249,-475.641677,0.00041,2]
[321485366,1712236245259,-151.2,0.00041,2]
[321485367,1712236245270,-151.2,0.00041,2]
[321485368,1712236245280,-151.2,0.00041,2]
[321485369,1712236245290,-151.2,0.00041,2]
[321485370,1712236245300,-151.2,0.00041,2]
[321485371,1712236245309,-151.2,0.00041,2]
[321485372,1712236245319,-151.2,0.00041,2]
[321485373,1712236245329,-151.2,0.00041,2]
[321485374,1712236245339,-151.2,0.00041,2]
[321485375,1712236245349,-1006.7,0.00041005,2]
[321485376,1712236245359,-911.46785595,0.00041096,30]
[321485377,1712236245369,-157.0,0.00041096,2]
[321485378,1712236245379,-9984.44,0.00041096,2]
[321485379,1712236245389,-6161.4,0.00041096,2]
[321485380,1712236245400,-3000.0,0.000411,2]
[321485381,1712236245410,-3000.0,0.000411,2]
[321485382,1712236245420,-152.36417667,0.00041131,30]
[321485383,1712236245431,-543.009562,0.00041165,2]
[321485384,1712236245441,-710.0,0.000412,30]
[321485385,1712236245450,-221.0,0.000412,30]
[321485386,1712236245460,-200.0,0.00041212,7]
[321485387,1712236245469,-160.34535195,0.00041222,30]
[321485388,1712236245479,-911.46785595,0.0004126,30]
[321485389,1712236245488,-157.30997332,0.00041302,30]
[321485390,1712236245497,-153.87719975,0.00041339,30]
[321485391,1712236245506,-152.11069391,0.00041349,30]
[321485392,1712236245516,-153.82631398,0.00041394,30]
[321485393,1712236245525,-911.46785595,0.00041425,30]
[321485394,1712236245535,-8523.83226739,0.00041459,4]
[321485395,1712236245544,-5000.0,0.00041459,5]
[321485396,1712236245556,-5000.0,0.00041459,6]
[321485397,1712236245566,-5000.0,0.00041459,5]
[321485398,1712236245576,-150.0,0.00041528,2]
[321485399,1712236245586,-911.46785595,0.00041589,30]
[321485400,1712236245598,-151.0,0.00041653,2]
[321485401,1712236245607,-250.49088,0.00041653,2]
[321485402,1712236245617,-153.87719975,0.00041657,30]
[321485403,1712236245627,-310.16,0.00041695,2]
[321485404,1712236245637,-154.25,0.000417,4]
[321485405,1712236245647,-154.25,0.000417,4]
[321485406,1712236245656,-154.25,0.000417,4]
[321485407,1712236245666,-154.25,0.000417,4]
[321485408,1712236245677,-154.25,0.000417,4]
[321485409,1712236245686,-154.25,0.000417,4]
[321485410,1712236245696,-154.25,0.000417,4]
[321485411,1712236245705,-154.25,0.000417,4]
[321485413,1712236245715,-154.25,0.000417,4]
[321485415,1712236245725,-154.25,0.000417,4]
[321485417,1712236245734,-154.25,0.000417,4]
[321485418,1712236245744,-154.25,0.000417,4]
[321485419,1712236245754,-7350.52,0.000417,4]
[321485420,1712236245764,-7350.52,0.000417,4]
[321485421,1712236245774,-7350.52,0.000417,4]
[321485422,1712236245784,-7350.52,0.000417,4]
[321485423,1712236245794,-7350.52,0.000417,4]
[321485424,1712236245804,-7350.52,0.000417,4]
[321485425,1712236245813,-7350.52,0.000417,4]
[321485426,1712236245823,-7350.52,0.000417,4]
[321485427,1712236245834,-7350.52,0.000417,4]
[321485428,1712236245844,-7350.52,0.000417,4]
[321485429,1712236245855,-7350.52,0.000417,4]
[321485430,1712236245865,-7350.52,0.000417,4]
[321485431,1712236245875,-7350.52,0.000417,4]
[321485432,1712236245886,-7350.52,0.000417,4]
[321485433,1712236245896,-7350.52,0.000417,4]
[321485434,1712236245907,-7350.52,0.000417,4]
[321485435,1712236245918,-7350.52,0.000417,4]
[321485436,1712236245931,-7350.52,0.000417,4]
[321485437,1712236245941,-7350.52,0.000417,4]
[321485438,1712236245952,-7350.52,0.000417,4]
[321485439,1712236245962,-444.52391945,0.00041723,30]
[321485440,1712236245972,-911.46785595,0.00041753,30]
[321485441,1712236245982,-150.0,0.00041766,60]
[321485442,1712236245992,-150.50625035,0.0004182,30]
[321485443,1712236246001,-159.12958476,0.00041849,30]
[321485444,1712236246011,-444.52391945,0.00041859,30]
[321485445,1712236246022,-1244.6074,0.000419,11]
[321485446,1712236246032,-150.50625035,0.00041907,30]
[321485447,1712236246041,-1006.7,0.0004191,2]
[321485448,1712236246052,-911.46785595,0.00041918,30]
[321485449,1712236246061,-255.29102252,0.00041922,30]
[321485450,1712236246071,-255.29102252,0.0004197,30]
[321485451,1712236246081,-166.66666667,0.00041981,30]
[321485452,1712236246091,-318.00145479,0.00042,2]
[321485453,1712236246101,-8769.75307227,0.00042,2]
[321485454,1712236246111,-453.73686246,0.00042,120]
[321485455,1712236246120,-4749.81402107,0.00042,2]
[321485456,1712236246130,-301.0,0.00042,10]
[321485457,1712236246139,-288.2,0.00042,17]
[321485458,1712236246148,-392.369205,0.00042,17]
[321485459,1712236246157,-444.52391945,0.00042001,30]
[321485460,1712236246167,-1303.68228842,0.0004201,2]
[321485461,1712236246178,-444.52391945,0.00042019,30]
[321485462,1712236246188,-3604.0,0.00042087,10]
[321485463,1712236246197,-536.45,0.000421,7]
[321485464,1712236246207,-680.45,0.000421,7]
[321485465,1712236246216,-545.83,0.000421,7]
[321485466,1712236246226,-176.66265931,0.00042157,30]
[321485467,1712236246235,-150.50625035,0.00042174,30]
[321485468,1712236246244,-444.52391945,0.00042207,30]
[321485469,1712236246254,-160.34535195,0.00042232,30]
[321485470,1712236246263,-153.87719975,0.00042249,30]
[321485471,1712236246273,-151.16400735,0.00042254,30]
[321485472,1712236246282,-184.247,0.00042264,2]
[321485473,1712236246291,-213.576,0.00042264,2]
[321485474,1712236246301,-261.16365937,0.0004228,30]
[321485475,1712236246310,-150.50625035,0.00042308,30]
[321485476,1712236246320,-302.0,0.00042353,4]
[321485477,1712236246329,-150.0,0.00042394,2]
[321485478,1712236246339,-444.52391945,0.0004248,30]
[321485479,1712236246349,-186.22,0.00042532,2]
[321485480,1712236246358,-152.11069391,0.00042674,30]
[321485481,1712236246367,-150.50625035,0.00042813,30]
[321485482,1712236246377,-1006.7,0.00042815,2]
[321485483,1712236246386,-150.50625035,0.00042863,30]
[321485484,1712236246395,-1164.04,0.00042892,2]
[321485485,1712236246404,-150.0,0.00042928,2]
[321485486,1712236246414,-150.0,0.00042935,2]
[321485487,1712236246423,-261.16365937,0.00042968,30]
[321485488,1712236246433,-181.45176696,0.00043,5]
[321485489,1712236246442,-721.67168931,0.00043,4]
[321485490,1712236246452,-500.0,0.00043,7]
[321485491,1712236246462,-500.0,0.00043,7]
[321485492,1712236246471,-500.0,0.00043,7]
[321485493,1712236246480,-500.0,0.00043,7]
[321485494,1712236246490,-500.0,0.00043,7]
[321485495,1712236246500,-500.0,0.00043,7]
[321485496,1712236246509,-500.0,0.00043,7]
[321485497,1712236246519,-500.0,0.00043,7]
[321485498,1712236246528,-500.0,0.00043,7]
[321485499,1712236246538,-500.0,0.00043,7]
[321485500,1712236246548,-500.0,0.00043,7]
[321485501,1712236246558,-500.0,0.00043,7]
[321485502,1712236246567,-500.0,0.00043,7]
[321485503,1712236246581,-500.0,0.00043,7]
[321485504,1712236246590,-500.0,0.00043,7]
[321485505,1712236246601,-500.0,0.00043,7]
[321485506,1712236246610,-500.0,0.00043,7]
[321485507,1712236246619,-500.0,0.00043,7]
[321485508,1712236246628,-500.0,0.00043,7]
[321485509,1712236246638,-500.0,0.00043,7]
[321485510,1712236246650,-500.0,0.00043,7]
[321485511,1712236246659,-500.0,0.00043,7]
[321485512,1712236246668,-500.0,0.00043,7]
[321485513,1712236246680,-500.0,0.00043,7]
[321485514,1712236246689,-500.0,0.00043,7]
[321485515,1712236246698,-500.0,0.00043,7]
[321485516,1712236246708,-500.0,0.00043,7]
[321485517,1712236246717,-500.0,0.00043,7]
[321485518,1712236246727,-500.0,0.00043,7]
[321485519,1712236246736,-155.0,0.00043,120]
[321485520,1712236246745,-500.0,0.00043,7]
[321485521,1712236246754,-500.0,0.00043,7]
[321485522,1712236246764,-500.0,0.00043,7]
[321485523,1712236246773,-500.0,0.00043,7]
[321485524,1712236246783,-500.0,0.00043,7]
[321485525,1712236246792,-500.0,0.00043,7]
[321485526,1712236246801,-500.0,0.00043,7]
[321485527,1712236246811,-500.0,0.00043,7]
[321485528,1712236246820,-500.0,0.00043,7]
[321485529,1712236246830,-500.0,0.00043,7]
[321485530,1712236246839,-500.0,0.00043,7]
[321485531,1712236246848,-500.0,0.00043,7]
[321485532,1712236246858,-500.0,0.00043,7]
[321485533,1712236246867,-500.0,0.00043,7]
[321485534,1712236246877,-500.0,0.00043,7]
[321485535,1712236246886,-500.0,0.00043,7]
[321485536,1712236246895,-500.0,0.00043,7]
[321485537,1712236246905,-500.0,0.00043,7]
[321485538,1712236246914,-500.0,0.00043,7]
[321485539,1712236246926,-500.0,0.00043,7]
[321485540,1712236246936,-500.0,0.00043,7]
[321485541,1712236246946,-500.0,0.00043,7]
[321485542,1712236246956,-500.0,0.00043,7]
[321485543,1712236246965,-500.0,0.00043,7]
[321485544,1712236246975,-500.0,0.00043,7]
[321485545,1712236246986,-500.0,0.00043,7]
[321485546,1712236246996,-500.0,0.00043,7]
[321485547,1712236247006,-500.0,0.00043,7]
[321485548,1712236247016,-500.0,0.00043,7]
[321485549,1712236247025,-500.0,0.00043,7]
[321485550,1712236247035,-500.0,0.00043,7]
[321485551,1712236247045,-500.0,0.00043,7]
[321485552,1712236247054,-500.0,0.00043,7]
[321485553,1712236247064,-469.49,0.00043,7]
[321485554,1712236247073,-307.96,0.00043,7]
[321485555,1712236247084,-500.0,0.00043,7]
[321485556,1712236247094,-150.0,0.00043,2]
[321485557,1712236247103,-150.0,0.00043001,2]
[321485558,1712236247113,-906.74899754,0.0004302,2]
[321485559,1712236247123,-152.0,0.00043048,3]
[321485560,1712236247133,-150.0,0.00043056,2]
[321485561,1712236247143,-153.87719975,0.00043058,30]
[321485562,1712236247153,-604.0,0.00043065,7]
[321485563,1712236247163,-155.97762983,0.00043066,30]
[321485564,1712236247175,-150.0,0.0004307,2]
[321485565,1712236247184,-150.0,0.00043096,120]
[321485566,1712236247195,-1000.0,0.000431,7]
[321485567,1712236247204,-150.0,0.00043109,2]
[321485568,1712236247214,-150.0,0.00043118,2]
[321485569,1712236247223,-150.50625035,0.0004312,30]
[321485570,1712236247233,-261.16365937,0.00043126,30]
[321485571,1712236247242,-150.0,0.0004314,2]
[321485572,1712236247252,-150.0,0.00043144,2]
[321485573,1712236247261,-150.0,0.00043144,2]
[321485574,1712236247271,-150.0,0.00043145,2]
[321485575,1712236247281,-150.0,0.00043149,2]
[321485576,1712236247292,-150.0,0.0004315,2]
[321485577,1712236247302,-1244.6074,0.0004315,17]
[321485578,1712236247311,-150.0,0.00043155,2]
[321485579,1712236247321,-261.16365937,0.00043159,30]
[321485580,1712236247331,-150.0,0.00043162,2]
[321485581,1712236247413,-150.0,0.00043162,2]
[321485582,1712236247425,-150.0,0.00043166,2]
[321485583,1712236247434,-150.0,0.00043169,2]
[321485584,1712236247443,-150.0,0.00043195,2]
[321485585,1712236247451,-150.0,0.00043197,2]
[321485586,1712236247460,-150.0,0.00043215,2]
[321485587,1712236247469,-150.0,0.0004322,2]
[321485588,1712236247479,-150.0,0.00043221,2]
[321485589,1712236247489,-150.0,0.00043227,2]
[321485590,1712236247499,-150.0,0.00043228,2]
[321485591,1712236247508,-150.0,0.00043232,2]
[321485592,1712236247518,-150.0,0.0004324,2]
[321485593,1712236247527,-150.0,0.00043244,2]
[321485594,1712236247537,-150.0,0.00043256,2]
[321485595,1712236247549,-150.0,0.00043259,2]
[321485596,1712236247561,-150.0,0.00043268,2]
[321485597,1712236247571,-150.0,0.00043269,2]
[321485598,1712236247584,-156.25,0.00043288,2]
[321485599,1712236247593,-310.16,0.0004329,2]
[321485600,1712236247605,-150.0,0.00043296,2]
[321485601,1712236247615,-150.0,0.00043314,2]
[321485602,1712236247624,-150.0,0.00043318,2]
[321485603,1712236247635,-150.0,0.0004332,2]
[321485604,1712236247646,-150.0,0.0004333,2]
[321485605,1712236247656,-150.0,0.00043336,2]
[321485606,1712236247666,-150.0,0.00043336,2]
[321485607,1712236247678,-97849.06973465,0.0004334,2]
[321485608,1712236247687,-151.0,0.0004334,14]
[321485609,1712236247697,-151.0,0.0004334,14]
[321485610,1712236247706,-1500.0,0.00043355,2]
[321485611,1712236247715,-150.0,0.00043356,2]
[321485612,1712236247725,-150.0,0.00043358,2]
[321485613,1712236247734,-150.0,0.0004336,2]
[321485614,1712236247744,-150.0,0.00043361,2]
[321485615,1712236247753,-150.0,0.00043376,2]
[321485616,1712236247762,-150.0,0.00043376,2]
[321485617,1712236247771,-153.82631398,0.0004338,30]